[Event "*** Titled Tuesday Blitz"]
[Site "Chess.com"]
[Date "2021.02.09"]
[Round "4"]
[White "SilviusTiberius"]
[Black "olksuna"]
[Result "1-0"]
[WhiteElo "2510"]
[BlackElo "2686"]
[TimeControl "180+1"]
[EndTime "10:39:29 PST"]
[Termination "SilviusTiberius won by resignation"]

1. e4 {[%clk 0:03:00.9]} 1... c5 {[%clk 0:02:59.8]} 2. Nf3 {[%clk 0:03:01.1]}
2... e6 {[%clk 0:03:00.4]} 3. d4 {[%clk 0:03:01.6]} 3... cxd4 {[%clk 0:03:01.3]}
4. Nxd4 {[%clk 0:03:02.3]} 4... a6 {[%clk 0:03:01.7]} 5. Bd3 {[%clk 0:03:02.8]}
5... Bc5 {[%clk 0:03:00.5]} 6. Nb3 {[%clk 0:03:02.7]} 6... Ba7 {[%clk
0:03:01.2]} 7. Qe2 {[%clk 0:03:02]} 7... Nc6 {[%clk 0:03:00.3]} 8. Be3 {[%clk
0:03:02.1]} 8... d6 {[%clk 0:02:59.7]} 9. c4 {[%clk 0:03:02.2]} 9... Nf6 {[%clk
0:02:58.7]} 10. Nc3 {[%clk 0:03:02.8]} 10... O-O {[%clk 0:02:58.1]} 11. O-O
{[%clk 0:03:03.4]} 11... e5 {[%clk 0:02:58]} 12. Bxa7 {[%clk 0:02:55.4]} 12...
Rxa7 {[%clk 0:02:57.5]} 13. h3 {[%clk 0:02:55.3]} 13... h6 {[%clk 0:02:56.7]}
14. Rfd1 {[%clk 0:02:55.2]} 14... Qc7 {[%clk 0:02:55.8]} 15. Qe3 {[%clk
0:02:55.6]} 15... Ra8 {[%clk 0:02:44.4]} 16. Bf1 {[%clk 0:02:55.1]} 16... Be6
{[%clk 0:02:41.5]} 17. Rd2 {[%clk 0:02:54.5]} 17... Rfd8 {[%clk 0:02:38.8]} 18.
Rad1 {[%clk 0:02:54.4]} 18... Ne7 {[%clk 0:02:32.1]} 19. Nd5 {[%clk 0:02:24.4]}
19... Bxd5 {[%clk 0:02:22.3]} 20. cxd5 {[%clk 0:02:25.3]} 20... Rac8 {[%clk
0:02:22.7]} 21. Rc1 {[%clk 0:02:22]} 21... Qb8 {[%clk 0:02:22.3]} 22. Rdc2
{[%clk 0:02:21.1]} 22... Rxc2 {[%clk 0:02:22.1]} 23. Rxc2 {[%clk 0:02:22]} 23...
Rc8 {[%clk 0:02:22.7]} 24. Qd3 {[%clk 0:02:08.3]} 24... Rc7 {[%clk 0:02:12.3]}
25. Nd2 {[%clk 0:01:45.2]} 25... Nd7 {[%clk 0:01:39.7]} 26. b4 {[%clk
0:01:43.3]} 26... Nb6 {[%clk 0:01:21.3]} 27. Qb3 {[%clk 0:01:35.4]} 27... Qc8
{[%clk 0:01:18.1]} 28. Bd3 {[%clk 0:01:36]} 28... Rxc2 {[%clk 0:01:13.8]} 29.
Qxc2 {[%clk 0:01:34.4]} 29... Qxc2 {[%clk 0:01:12.5]} 30. Bxc2 {[%clk
0:01:35.3]} 30... f5 {[%clk 0:01:12.9]} 31. f3 {[%clk 0:01:34.5]} 31... f4
{[%clk 0:00:56.9]} 32. Nb3 {[%clk 0:01:34.6]} 32... Nc4 {[%clk 0:00:52.3]} 33.
Bd3 {[%clk 0:01:34.1]} 33... Ne3 {[%clk 0:00:36.1]} 34. Na5 {[%clk 0:01:32.7]}
34... b5 {[%clk 0:00:35.6]} 35. Nc6 {[%clk 0:01:20.5]} 35... Nc8 {[%clk
0:00:12.7]} 36. Nb8 {[%clk 0:01:20.8]} 36... Nd1 {[%clk 0:00:12.4]} 37. Nxa6
{[%clk 0:01:18.6]} 37... Nc3 {[%clk 0:00:13]} 38. a3 {[%clk 0:01:09.5]} 38...
Kf8 {[%clk 0:00:12]} 39. Nc7 {[%clk 0:01:05.7]} 39... Na7 {[%clk 0:00:11.3]} 40.
Kf2 {[%clk 0:01:05.7]} 40... Ke7 {[%clk 0:00:11.2]} 41. Ke1 {[%clk 0:01:05.5]}
41... Kd7 {[%clk 0:00:10.8]} 42. Kd2 {[%clk 0:01:04.6]} 42... Nxe4+ {[%clk
0:00:09.4]} 43. fxe4 {[%clk 0:01:01.6]} 43... Kxc7 {[%clk 0:00:10.3]} 44. Ke2
{[%clk 0:01:02]} 44... Kb6 {[%clk 0:00:09.8]} 45. Kf3 {[%clk 0:01:02.6]} 45...
Nc8 {[%clk 0:00:09.6]} 46. Kg4 {[%clk 0:01:03.2]} 46... Ne7 {[%clk 0:00:09.9]}
47. Kh5 {[%clk 0:01:03.2]} 47... Ka6 {[%clk 0:00:05]} 48. a4 {[%clk 0:00:59.9]}
48... Kb6 {[%clk 0:00:04.9]} 49. Bxb5 {[%clk 0:00:59.8]} 49... Ng8 {[%clk
0:00:04.5]} 50. Kg6 {[%clk 0:00:58.2]} 50... Nf6 {[%clk 0:00:04.4]} 51. Bd3
{[%clk 0:00:58.9]} 51... Kc7 {[%clk 0:00:02.4]} 52. Kxg7 {[%clk 0:00:59]} 52...
Nh5+ {[%clk 0:00:02.7]} 53. Kxh6 {[%clk 0:00:59.4]} 53... Ng3 {[%clk 0:00:03.3]}
54. h4 {[%clk 0:00:58.6]} 54... Kb6 {[%clk 0:00:03.6]} 55. Kg5 {[%clk
0:00:57.9]} 55... f3 {[%clk 0:00:03.6]} 56. gxf3 {[%clk 0:00:58]} 1-0

[Event "*** Titled Tuesday Blitz"]
[Site "Chess.com"]
[Date "2021.02.09"]
[Round "4"]
[White "dukicz123"]
[Black "garicradomir"]
[Result "0-1"]
[WhiteElo "2548"]
[BlackElo "2227"]
[TimeControl "180+1"]
[EndTime "10:39:29 PST"]
[Termination "garicradomir won by checkmate"]

1. e4 {[%clk 0:03:00.9]} 1... g6 {[%clk 0:02:59.6]} 2. d4 {[%clk 0:03:00.8]}
2... Nf6 {[%clk 0:02:59.8]} 3. Nc3 {[%clk 0:02:59.4]} 3... d5 {[%clk 0:02:57.3]}
4. e5 {[%clk 0:02:53]} 4... Ne4 {[%clk 0:02:57.2]} 5. Nxe4 {[%clk 0:02:41.7]}
5... dxe4 {[%clk 0:02:58.1]} 6. Bc4 {[%clk 0:02:42.3]} 6... Bg7 {[%clk
0:02:55.5]} 7. Ne2 {[%clk 0:02:42.5]} 7... Bg4 {[%clk 0:02:51.1]} 8. c3 {[%clk
0:02:39.1]} 8... O-O {[%clk 0:02:48.1]} 9. h3 {[%clk 0:02:35.6]} 9... Bd7 {[%clk
0:02:39.2]} 10. Ng3 {[%clk 0:02:30.9]} 10... c5 {[%clk 0:02:34.2]} 11. Nxe4
{[%clk 0:02:21.5]} 11... cxd4 {[%clk 0:02:33.6]} 12. cxd4 {[%clk 0:02:21.8]}
12... Nc6 {[%clk 0:02:20.3]} 13. Be3 {[%clk 0:02:18.6]} 13... Nb4 {[%clk
0:02:12.1]} 14. O-O {[%clk 0:02:10.2]} 14... Bc6 {[%clk 0:02:10.9]} 15. Nc3
{[%clk 0:02:01.4]} 15... Nd5 {[%clk 0:02:07.5]} 16. Qb3 {[%clk 0:01:56.5]} 16...
Nxe3 {[%clk 0:02:06]} 17. fxe3 {[%clk 0:01:57.4]} 17... e6 {[%clk 0:02:01.9]}
18. Rf2 {[%clk 0:01:42.5]} 18... Bh6 {[%clk 0:01:58.2]} 19. Re1 {[%clk 0:01:35]}
19... Rc8 {[%clk 0:01:57.6]} 20. Ne2 {[%clk 0:01:09.1]} 20... Qh4 {[%clk
0:01:53.9]} 21. Nf4 {[%clk 0:01:04.2]} 21... Bxf4 {[%clk 0:01:49.1]} 22. exf4
{[%clk 0:01:05.1]} 22... Rfd8 {[%clk 0:01:48.1]} 23. Rd1 {[%clk 0:00:45]} 23...
b6 {[%clk 0:01:38.1]} 24. Ba6 {[%clk 0:00:29.9]} 24... Rc7 {[%clk 0:01:32.2]}
25. Qe3 {[%clk 0:00:30]} 25... Rcd7 {[%clk 0:01:26.6]} 26. Be2 {[%clk 0:00:27]}
26... Qe7 {[%clk 0:01:09.1]} 27. Bf3 {[%clk 0:00:22.7]} 27... Bxf3 {[%clk
0:01:07.7]} 28. Rxf3 {[%clk 0:00:22.1]} 28... Qb4 {[%clk 0:01:08.2]} 29. Qc3
{[%clk 0:00:20.6]} 29... Qa4 {[%clk 0:01:01.2]} 30. Rfd3 {[%clk 0:00:20.2]}
30... Qxa2 {[%clk 0:00:58.9]} 31. Kh2 {[%clk 0:00:20.5]} 31... Rd5 {[%clk
0:00:57.9]} 32. Qc7 {[%clk 0:00:20.3]} 32... Qa6 {[%clk 0:00:55.6]} 33. R3d2
{[%clk 0:00:17.4]} 33... Rc8 {[%clk 0:00:55.2]} 34. Qe7 {[%clk 0:00:17.6]} 34...
Rcd8 {[%clk 0:00:52.2]} 35. h4 {[%clk 0:00:17.1]} 35... h5 {[%clk 0:00:49.3]}
36. g4 {[%clk 0:00:17.4]} 36... Qa4 {[%clk 0:00:27.3]} 37. gxh5 {[%clk
0:00:16.2]} 37... Rxd4 {[%clk 0:00:27.8]} 38. Rxd4 {[%clk 0:00:08.8]} 38... Rxd4
{[%clk 0:00:28.7]} 39. Rg1 {[%clk 0:00:09.2]} 39... Rd2+ {[%clk 0:00:27.6]} 40.
Kh3 {[%clk 0:00:08.1]} 40... Qxf4 {[%clk 0:00:25.6]} 41. Qe8+ {[%clk 0:00:06]}
41... Kg7 {[%clk 0:00:23.7]} 42. h6+ {[%clk 0:00:02.4]} 42... Kh7 {[%clk
0:00:23.8]} 43. Qf8 {[%clk 0:00:01.5]} 43... Rh2# {[%clk 0:00:22.9]} 0-1

[Event "*** Titled Tuesday Blitz"]
[Site "Chess.com"]
[Date "2021.02.09"]
[Round "4"]
[White "Supernotar"]
[Black "Angel_Hranitel_37"]
[Result "1-0"]
[WhiteElo "2793"]
[BlackElo "2470"]
[TimeControl "180+1"]
[EndTime "10:39:30 PST"]
[Termination "Supernotar won by checkmate"]

1. d4 {[%clk 0:03:00.9]} 1... Nf6 {[%clk 0:03:00.2]} 2. c4 {[%clk 0:02:59]} 2...
g6 {[%clk 0:03:00.6]} 3. Nc3 {[%clk 0:02:58.7]} 3... Bg7 {[%clk 0:03:00.1]} 4.
e4 {[%clk 0:02:58.9]} 4... d6 {[%clk 0:03:00.7]} 5. Be2 {[%clk 0:02:59.8]} 5...
O-O {[%clk 0:03:00.5]} 6. Nf3 {[%clk 0:03:00.3]} 6... e5 {[%clk 0:03:00.2]} 7.
O-O {[%clk 0:03:00.3]} 7... Bg4 {[%clk 0:03:00.8]} 8. d5 {[%clk 0:02:56.9]} 8...
a5 {[%clk 0:02:38.8]} 9. Ne1 {[%clk 0:02:56.2]} 9... Bd7 {[%clk 0:02:37.8]} 10.
Be3 {[%clk 0:02:53.7]} 10... Na6 {[%clk 0:02:37.4]} 11. Nd3 {[%clk 0:02:43]}
11... b6 {[%clk 0:02:36.9]} 12. b3 {[%clk 0:02:33.9]} 12... Nc5 {[%clk
0:02:34.1]} 13. f3 {[%clk 0:02:33.9]} 13... Nh5 {[%clk 0:02:30.1]} 14. Rb1
{[%clk 0:02:30.8]} 14... f5 {[%clk 0:02:26.7]} 15. a3 {[%clk 0:02:24.8]} 15...
Nf4 {[%clk 0:02:19.9]} 16. b4 {[%clk 0:02:17.5]} 16... Ncxd3 {[%clk 0:01:58.3]}
17. Bxd3 {[%clk 0:02:17.3]} 17... fxe4 {[%clk 0:01:59]} 18. Bxe4 {[%clk
0:02:08.6]} 18... axb4 {[%clk 0:01:59.3]} 19. axb4 {[%clk 0:02:08.5]} 19... Ra3
{[%clk 0:01:56.8]} 20. Rb3 {[%clk 0:01:47.9]} 20... Qa8 {[%clk 0:01:48.9]} 21.
g3 {[%clk 0:01:35.1]} 21... Nh3+ {[%clk 0:00:52.2]} 22. Kg2 {[%clk 0:01:35]}
22... h5 {[%clk 0:00:41.6]} 23. Bxg6 {[%clk 0:01:26.8]} 23... h4 {[%clk
0:00:41.9]} 24. Bc2 {[%clk 0:01:14.6]} 24... e4 {[%clk 0:00:32.8]} 25. Nxe4
{[%clk 0:01:04]} 25... Ra1 {[%clk 0:00:30.3]} 26. Rb1 {[%clk 0:00:54.5]} 26...
Ra2 {[%clk 0:00:15.9]} 27. Qd3 {[%clk 0:00:41.6]} 27... Qa4 {[%clk 0:00:04.8]}
28. Rfc1 {[%clk 0:00:33.4]} 28... Ra8 {[%clk 0:00:04.7]} 29. Kh1 {[%clk
0:00:23.3]} 29... Qa3 {[%clk 0:00:03.6]} 30. Nf6+ {[%clk 0:00:19.5]} 30... Bxf6
{[%clk 0:00:04.1]} 31. Qh7+ {[%clk 0:00:19.6]} 31... Kf8 {[%clk 0:00:05]} 32.
Bh6+ {[%clk 0:00:19.3]} 32... Ke8 {[%clk 0:00:05]} 33. Bg6+ {[%clk 0:00:11.7]}
33... Kd8 {[%clk 0:00:05.5]} 34. Qg8+ {[%clk 0:00:10.2]} 34... Ke7 {[%clk
0:00:06.1]} 35. Qf7+ {[%clk 0:00:09.6]} 35... Kd8 {[%clk 0:00:06.7]} 36. Qf8+
{[%clk 0:00:07.8]} 36... Be8 {[%clk 0:00:07.4]} 37. Qxe8# {[%clk 0:00:08]} 1-0

[Event "*** Titled Tuesday Blitz"]
[Site "Chess.com"]
[Date "2021.02.09"]
[Round "4"]
[White "aa175"]
[Black "FrenchMonster2002"]
[Result "1-0"]
[WhiteElo "2603"]
[BlackElo "2388"]
[TimeControl "180+1"]
[EndTime "10:39:31 PST"]
[Termination "aa175 won on time"]

1. d4 {[%clk 0:03:00.9]} 1... Nf6 {[%clk 0:02:59.9]} 2. Nf3 {[%clk 0:02:59.8]}
2... g6 {[%clk 0:03:00.4]} 3. Bf4 {[%clk 0:02:59.3]} 3... Bg7 {[%clk 0:03:00.6]}
4. e3 {[%clk 0:02:58.2]} 4... O-O {[%clk 0:03:00.5]} 5. Be2 {[%clk 0:02:58.3]}
5... c5 {[%clk 0:03:00.9]} 6. O-O {[%clk 0:02:57.5]} 6... b6 {[%clk 0:03:01.3]}
7. Nbd2 {[%clk 0:02:52.4]} 7... d6 {[%clk 0:03:01.5]} 8. c3 {[%clk 0:02:51.8]}
8... Bb7 {[%clk 0:03:00.7]} 9. a4 {[%clk 0:02:52.3]} 9... a6 {[%clk 0:03:01]}
10. h3 {[%clk 0:02:51.7]} 10... Nbd7 {[%clk 0:03:01.2]} 11. Re1 {[%clk
0:02:51.8]} 11... Ra7 {[%clk 0:03:01.4]} 12. Nc4 {[%clk 0:02:50.6]} 12... Qa8
{[%clk 0:03:00.7]} 13. Qb3 {[%clk 0:02:48.5]} 13... Bd5 {[%clk 0:02:52.2]} 14.
Qd1 {[%clk 0:02:25.3]} 14... b5 {[%clk 0:02:46]} 15. axb5 {[%clk 0:02:26.2]}
15... axb5 {[%clk 0:02:46.9]} 16. Rxa7 {[%clk 0:02:26.5]} 16... Qxa7 {[%clk
0:02:47.8]} 17. Na3 {[%clk 0:02:24.5]} 17... b4 {[%clk 0:02:46.7]} 18. Nc4
{[%clk 0:02:08.5]} 18... bxc3 {[%clk 0:02:39.8]} 19. bxc3 {[%clk 0:02:08.1]}
19... Ne4 {[%clk 0:02:39.9]} 20. Qc2 {[%clk 0:02:01.9]} 20... Ra8 {[%clk
0:02:25.7]} 21. Bd3 {[%clk 0:01:45.6]} 21... Ndf6 {[%clk 0:02:04]} 22. Rb1
{[%clk 0:01:35.2]} 22... h6 {[%clk 0:01:54.3]} 23. Nb6 {[%clk 0:01:29.6]} 23...
Ba2 {[%clk 0:01:30.6]} 24. Bxe4 {[%clk 0:01:08.9]} 24... Bxb1 {[%clk 0:01:23.9]}
25. Qxb1 {[%clk 0:01:02.6]} 25... Rb8 {[%clk 0:01:20]} 26. dxc5 {[%clk
0:01:02.6]} 26... e5 {[%clk 0:01:10.6]} 27. Nxe5 {[%clk 0:00:55.3]} 27... dxe5
{[%clk 0:01:10.3]} 28. Bxe5 {[%clk 0:00:56.2]} 28... Re8 {[%clk 0:01:00.1]} 29.
Bxf6 {[%clk 0:00:54.6]} 29... Bxf6 {[%clk 0:01:01]} 30. Bxg6 {[%clk 0:00:54]}
30... Bxc3 {[%clk 0:00:49.7]} 31. Bh7+ {[%clk 0:00:46.5]} 31... Kg7 {[%clk
0:00:42.4]} 32. Bf5 {[%clk 0:00:16.7]} 32... Qa5 {[%clk 0:00:20]} 33. Nd7 {[%clk
0:00:09.6]} 33... Qc7 {[%clk 0:00:07.9]} 34. Qd1 {[%clk 0:00:09]} 34... Ra8
{[%clk 0:00:05.1]} 35. Qg4+ {[%clk 0:00:09.2]} 35... Kh8 {[%clk 0:00:03.7]} 36.
g3 {[%clk 0:00:09.4]} 36... Bg7 {[%clk 0:00:03]} 37. Be4 {[%clk 0:00:08.5]}
37... Rd8 {[%clk 0:00:02.8]} 38. Qf5 {[%clk 0:00:08.4]} 1-0

[Event "*** Titled Tuesday Blitz"]
[Site "Chess.com"]
[Date "2021.02.09"]
[Round "4"]
[White "djano"]
[Black "Fusikk"]
[Result "0-1"]
[WhiteElo "2473"]
[BlackElo "2639"]
[TimeControl "180+1"]
[EndTime "10:39:32 PST"]
[Termination "Fusikk won by resignation"]

1. Nf3 {[%clk 0:03:00.9]} 1... d5 {[%clk 0:02:58.9]} 2. d4 {[%clk 0:03:00.4]}
2... Nf6 {[%clk 0:02:58.6]} 3. Bf4 {[%clk 0:03:00.6]} 3... e6 {[%clk 0:02:57.6]}
4. e3 {[%clk 0:03:00.4]} 4... Bd6 {[%clk 0:02:58.1]} 5. Bg3 {[%clk 0:02:59.2]}
5... c5 {[%clk 0:02:58.2]} 6. c3 {[%clk 0:02:57.1]} 6... Qc7 {[%clk 0:02:58.6]}
7. Nbd2 {[%clk 0:02:55.9]} 7... Nbd7 {[%clk 0:02:58.8]} 8. Bd3 {[%clk 0:02:51]}
8... b6 {[%clk 0:02:58.8]} 9. Qe2 {[%clk 0:02:50.4]} 9... Bb7 {[%clk 0:02:58.8]}
10. e4 {[%clk 0:02:34.3]} 10... Bxg3 {[%clk 0:02:54.4]} 11. hxg3 {[%clk
0:02:33.5]} 11... dxe4 {[%clk 0:02:36.7]} 12. Nxe4 {[%clk 0:02:33.1]} 12... Rc8
{[%clk 0:02:36.1]} 13. Nxf6+ {[%clk 0:02:25.2]} 13... Nxf6 {[%clk 0:02:37]} 14.
Bb5+ {[%clk 0:02:22.2]} 14... Ke7 {[%clk 0:02:23.3]} 15. dxc5 {[%clk 0:02:20]}
15... Qxc5 {[%clk 0:02:18]} 16. O-O {[%clk 0:02:07.1]} 16... Ne4 {[%clk
0:02:11.4]} 17. Nd4 {[%clk 0:01:39.6]} 17... e5 {[%clk 0:01:48.3]} 18. Bd3
{[%clk 0:01:31.1]} 18... Nd6 {[%clk 0:00:50.6]} 19. Rae1 {[%clk 0:01:20.1]}
19... f6 {[%clk 0:00:50.4]} 20. Qg4 {[%clk 0:01:15.8]} 20... Kf7 {[%clk
0:00:25.6]} 21. Qe6+ {[%clk 0:01:07.4]} 21... Kf8 {[%clk 0:00:25.8]} 22. Qd7
{[%clk 0:00:53.1]} 22... exd4 {[%clk 0:00:14.9]} 23. Qe7+ {[%clk 0:00:49.8]}
23... Kg8 {[%clk 0:00:15.1]} 24. Qe6+ {[%clk 0:00:17.5]} 24... Nf7 {[%clk
0:00:14.4]} 25. Qe8+ {[%clk 0:00:13.7]} 25... Rxe8 {[%clk 0:00:11.5]} 26. Rxe8+
{[%clk 0:00:14.6]} 26... Qf8 {[%clk 0:00:12.4]} 27. Rxf8+ {[%clk 0:00:14.6]}
27... Kxf8 {[%clk 0:00:13.3]} 28. cxd4 {[%clk 0:00:15.1]} 28... Ke7 {[%clk
0:00:12.1]} 29. Rc1 {[%clk 0:00:14.7]} 29... Kd6 {[%clk 0:00:12]} 30. Bc4 {[%clk
0:00:11.7]} 30... Ng5 {[%clk 0:00:10.6]} 31. f3 {[%clk 0:00:11.2]} 31... Rc8
{[%clk 0:00:09.8]} 32. Rc3 {[%clk 0:00:11.4]} 32... Bd5 {[%clk 0:00:06.2]} 33.
b3 {[%clk 0:00:10.9]} 33... b5 {[%clk 0:00:06.5]} 34. f4 {[%clk 0:00:08.5]}
34... Nf7 {[%clk 0:00:05.5]} 0-1

[Event "*** Titled Tuesday Blitz"]
[Site "Chess.com"]
[Date "2021.02.09"]
[Round "4"]
[White "DrVelja"]
[Black "Jospem"]
[Result "0-1"]
[WhiteElo "2829"]
[BlackElo "3050"]
[TimeControl "180+1"]
[EndTime "10:39:33 PST"]
[Termination "Jospem won by resignation"]

1. e4 {[%clk 0:03:00.9]} 1... e5 {[%clk 0:02:57.5]} 2. Nf3 {[%clk 0:03:01.2]}
2... Nc6 {[%clk 0:02:58.1]} 3. Bb5 {[%clk 0:03:01.7]} 3... a6 {[%clk 0:02:58.2]}
4. Ba4 {[%clk 0:03:02.3]} 4... Nf6 {[%clk 0:02:58.6]} 5. O-O {[%clk 0:03:02.9]}
5... Nxe4 {[%clk 0:02:58.9]} 6. d4 {[%clk 0:03:02]} 6... Be7 {[%clk 0:02:58.9]}
7. Re1 {[%clk 0:02:59]} 7... b5 {[%clk 0:02:58.1]} 8. Rxe4 {[%clk 0:02:59.5]}
8... d5 {[%clk 0:02:57.8]} 9. Nxe5 {[%clk 0:03:00.2]} 9... Nxe5 {[%clk
0:02:57.7]} 10. Rxe5 {[%clk 0:03:01.1]} 10... bxa4 {[%clk 0:02:58.1]} 11. b3
{[%clk 0:03:01.6]} 11... O-O {[%clk 0:02:57.7]} 12. Ba3 {[%clk 0:03:02]} 12...
Bxa3 {[%clk 0:02:57.4]} 13. Nxa3 {[%clk 0:03:02.9]} 13... Re8 {[%clk 0:02:57.3]}
14. Rxe8+ {[%clk 0:03:00.9]} 14... Qxe8 {[%clk 0:02:58.2]} 15. Nb1 {[%clk
0:02:58.7]} 15... Qc6 {[%clk 0:02:43.4]} 16. Qd2 {[%clk 0:02:57.9]} 16... Bf5
{[%clk 0:02:43.4]} 17. Nc3 {[%clk 0:02:58]} 17... a3 {[%clk 0:02:43.8]} 18. Re1
{[%clk 0:02:49.9]} 18... f6 {[%clk 0:02:30.4]} 19. h3 {[%clk 0:02:14.4]} 19...
h5 {[%clk 0:02:20]} 20. Re2 {[%clk 0:02:08.4]} 20... Kh7 {[%clk 0:02:01.9]} 21.
Na4 {[%clk 0:02:02.1]} 21... Re8 {[%clk 0:01:57.4]} 22. Nc5 {[%clk 0:01:59.1]}
22... a5 {[%clk 0:01:41.5]} 23. c3 {[%clk 0:01:41.7]} 23... Qb5 {[%clk
0:01:34.4]} 24. Re3 {[%clk 0:01:21.8]} 24... Rxe3 {[%clk 0:01:13.7]} 25. Qxe3
{[%clk 0:01:22.7]} 25... Bb1 {[%clk 0:01:05.1]} 26. Qd2 {[%clk 0:01:19.9]} 26...
Qe8 {[%clk 0:01:02.7]} 27. Qc1 {[%clk 0:01:11.4]} 27... Bf5 {[%clk 0:00:54.8]}
28. Qd1 {[%clk 0:00:59.7]} 28... h4 {[%clk 0:00:50.7]} 29. Kh2 {[%clk
0:00:41.6]} 29... Qg6 {[%clk 0:00:42.8]} 30. Qc1 {[%clk 0:00:32.1]} 30... Qh5
{[%clk 0:00:32.6]} 31. Qxa3 {[%clk 0:00:29]} 31... Qe2 {[%clk 0:00:32.5]} 32.
Qxa5 {[%clk 0:00:22.2]} 32... Qxf2 {[%clk 0:00:32.6]} 33. Qxc7 {[%clk
0:00:22.9]} 33... Be4 {[%clk 0:00:30.9]} 34. Nxe4 {[%clk 0:00:21]} 34... dxe4
{[%clk 0:00:31.8]} 35. Qe7 {[%clk 0:00:17.8]} 35... e3 {[%clk 0:00:17.7]} 36.
Qe8 {[%clk 0:00:14]} 36... Kh6 {[%clk 0:00:12.2]} 37. Qh8+ {[%clk 0:00:12.9]}
37... Kg6 {[%clk 0:00:12.8]} 38. Qe8+ {[%clk 0:00:12.1]} 38... Kg5 {[%clk
0:00:13.4]} 39. Qb5+ {[%clk 0:00:03.1]} 39... Kh6 {[%clk 0:00:12]} 40. Qe8
{[%clk 0:00:04]} 40... e2 {[%clk 0:00:11.3]} 0-1

[Event "*** Titled Tuesday Blitz"]
[Site "Chess.com"]
[Date "2021.02.09"]
[Round "4"]
[White "Vincent_Vega95"]
[Black "ukchessbomber"]
[Result "1/2-1/2"]
[WhiteElo "2714"]
[BlackElo "2426"]
[TimeControl "180+1"]
[EndTime "10:39:35 PST"]
[Termination "Game drawn by repetition"]

1. d4 {[%clk 0:03:00.9]} 1... Nf6 {[%clk 0:02:59.3]} 2. c4 {[%clk 0:03:00.9]}
2... g6 {[%clk 0:02:59.7]} 3. Nc3 {[%clk 0:03:01.4]} 3... Bg7 {[%clk 0:03:00.2]}
4. e4 {[%clk 0:03:02]} 4... d6 {[%clk 0:03:00.7]} 5. Nf3 {[%clk 0:03:02.4]} 5...
O-O {[%clk 0:03:01.2]} 6. h3 {[%clk 0:03:00.8]} 6... e5 {[%clk 0:03:00.6]} 7. d5
{[%clk 0:03:01]} 7... Nh5 {[%clk 0:03:00.2]} 8. Nd2 {[%clk 0:02:54.8]} 8... Qe8
{[%clk 0:02:57.3]} 9. Be2 {[%clk 0:02:51.2]} 9... Nf4 {[%clk 0:02:55.2]} 10. Bf3
{[%clk 0:02:51.3]} 10... f5 {[%clk 0:02:55.1]} 11. O-O {[%clk 0:02:50.3]} 11...
Nd3 {[%clk 0:02:36.3]} 12. Qe2 {[%clk 0:02:41.1]} 12... Nxc1 {[%clk 0:02:35.3]}
13. Raxc1 {[%clk 0:02:40.3]} 13... f4 {[%clk 0:02:34.5]} 14. c5 {[%clk
0:02:34.1]} 14... dxc5 {[%clk 0:02:29.9]} 15. b4 {[%clk 0:02:34.4]} 15... Na6
{[%clk 0:02:22.1]} 16. bxc5 {[%clk 0:02:30.5]} 16... Nxc5 {[%clk 0:02:15.9]} 17.
Nb5 {[%clk 0:02:31]} 17... Na6 {[%clk 0:02:16.3]} 18. Nxc7 {[%clk 0:02:20.4]}
18... Nxc7 {[%clk 0:02:16.1]} 19. Rxc7 {[%clk 0:02:21.3]} 19... Qd8 {[%clk
0:02:04.2]} 20. Rfc1 {[%clk 0:02:19.7]} 20... Qg5 {[%clk 0:02:03.7]} 21. Bg4
{[%clk 0:02:15.4]} 21... f3 {[%clk 0:01:50.7]} 22. Nxf3 {[%clk 0:02:13.1]} 22...
Bxg4 {[%clk 0:01:48.9]} 23. hxg4 {[%clk 0:02:13.8]} 23... Qxg4 {[%clk
0:01:48.2]} 24. Nd4 {[%clk 0:01:48.3]} 24... Qxe2 {[%clk 0:00:54.7]} 25. Nxe2
{[%clk 0:01:49.2]} 25... Rf7 {[%clk 0:00:55.1]} 26. Rxf7 {[%clk 0:01:47.4]}
26... Kxf7 {[%clk 0:00:56]} 27. Rc7+ {[%clk 0:01:47.4]} 27... Kf6 {[%clk
0:00:55]} 28. Rxb7 {[%clk 0:01:43]} 28... Bf8 {[%clk 0:00:49.4]} 29. Nc3 {[%clk
0:01:26.9]} 29... Bc5 {[%clk 0:00:40.6]} 30. Nb5 {[%clk 0:01:25.3]} 30... Kg5
{[%clk 0:00:29.2]} 31. g3 {[%clk 0:01:25.3]} 31... Rf8 {[%clk 0:00:27.2]} 32.
Rc7 {[%clk 0:01:07.5]} 32... Bxf2+ {[%clk 0:00:25.9]} 33. Kg2 {[%clk 0:01:07.9]}
33... Bb6 {[%clk 0:00:25.6]} 34. Rc2 {[%clk 0:01:08.4]} 34... h5 {[%clk
0:00:23.4]} 35. a4 {[%clk 0:01:02]} 35... h4 {[%clk 0:00:21.2]} 36. d6 {[%clk
0:00:52.7]} 36... hxg3 {[%clk 0:00:17.3]} 37. Kxg3 {[%clk 0:00:53.2]} 37... Kf6
{[%clk 0:00:15.3]} 38. Nc7 {[%clk 0:00:16.3]} 38... Rd8 {[%clk 0:00:15.2]} 39.
Rc6 {[%clk 0:00:14.1]} 39... Kf7 {[%clk 0:00:14.2]} 40. Kg4 {[%clk 0:00:14.2]}
40... Rd7 {[%clk 0:00:13.1]} 41. Kg3 {[%clk 0:00:12.2]} 41... Kf6 {[%clk
0:00:08.8]} 42. Kg4 {[%clk 0:00:12.4]} 42... Kf7 {[%clk 0:00:09]} 43. Kg5 {[%clk
0:00:12.9]} 43... Be3+ {[%clk 0:00:08.6]} 44. Kg4 {[%clk 0:00:13.5]} 44... Bb6
{[%clk 0:00:09.5]} 1/2-1/2